bitfinex/quotes_SOLUSD_20250717
["timestamp","ask_amount","ask_price","bid_price","bid_amount"]
[1752775797235,23.73884612,174.11,174.1,2.19718725]
[1752775797418,17.44468397,174.11,174.1,2.19718725]
[1752775797613,23.73884612,174.11,174.1,2.19718725]
[1752775797920,17.44468397,174.11,174.1,2.19718725]
[1752775800219,23.73884612,174.11,174.1,2.19718725]
[1752775801248,53.69884612,174.11,174.1,2.19718725]
[1752775801823,17.44468397,174.11,174.1,2.19718725]
[1752775802124,29.96,174.11,174.1,14.23517478]
[1752775803143,30.62,174.11,174.1,2.19718725]
[1752775803328,53.69884612,174.11,174.1,2.19718725]
[1752775804251,59.44234161,174.11,174.1,2.19718725]
[1752775804818,73.57870376,174.11,174.1,2.19718725]
[1752775805019,67.28454161,174.11,174.1,0.03]
[1752775805248,73.57870376,174.11,174.1,0.03]
[1752775805547,67.28454161,174.11,174.1,0.03]
[1752775808771,73.57870376,174.11,174.1,0.03]
[1752775809834,23.07884612,174.06,174.05,0.03]
[1752775810039,53.03884612,174.06,174.05,0.03]
[1752775810240,53.69884612,174.06,174.05,0.03]
[1752775810739,59.44399147,174.06,174.05,0.03]
[1752775811050,46.74468397,174.06,174.05,0.03]
[1752775811351,59.44399147,174.06,174.05,0.03]
[1752775815962,53.14982932,174.06,174.05,0.03]
[1752775816145,59.44399147,174.06,174.05,0.03]
[1752775816562,53.14982932,174.06,174.05,0.03]
[1752775816859,59.44399147,174.06,174.05,0.03]
[1752775817159,53.14982932,174.06,174.05,0.03]
[1752775817463,59.44399147,174.06,174.05,0.03]
[1752775822353,65.53269147,174.06,174.05,0.03]
[1752775823053,29.27852932,174.06,174.05,0.03]
[1752775823245,65.51269147,174.06,174.05,0.03]
[1752775825965,59.21852932,174.06,174.05,0.03]
[1752775826167,65.51269147,174.06,174.05,0.03]
[1752775829350,59.21852932,174.06,174.05,0.03]
[1752775829555,59.42399147,174.06,174.05,0.03]
[1752775835384,42.78468397,174.04,174.03,0.03]
[1752775835591,79.01884612,174.04,174.03,0.03]
[1752775835879,228.03884612,174.04,174.03,0.03]
[1752775836569,16.78468397,174.03,174.02,0.03]
[1752775836768,29.54498184,174.03,174.02,0.03]
[1752775837281,29.54498184,174.03,173.98,0.03]
[1752775837282,16.78468397,173.99,173.98,0.03]
[1752775837467,53.01884612,173.99,173.98,0.03]
[1752775837667,53.01884612,173.99,173.96,0.03]
[1752775837668,18.39598397,173.98,173.96,0.03]
[1752775837866,42.78468397,173.94,173.92,0.2]
[1752775838075,83.30551583,173.94,173.92,0.2]
[1752775838378,84.02551583,173.94,173.92,0.2]
[1752775838754,84.02151357,173.94,173.92,0.2]
[1752775838955,55.547955,173.94,173.92,0.2]
[1752775839160,85.487955,173.94,173.92,0.2]
[1752775839355,43.50468397,173.94,173.92,0.2]
[1752775839584,42.78468397,173.94,173.92,0.2]
[1752775839777,72.72468397,173.94,173.92,0.2]
[1752775840572,72.72468397,173.94,173.93,0.86]
[1752775840573,26.0,173.94,173.93,0.86]
[1752775840777,16.78468397,173.98,173.93,12.90360157]
[1752775840967,16.78468397,173.98,173.94,0.66]
[1752775840968,16.78468397,173.96,173.94,0.66]
[1752775841159,29.94,173.95,173.93,12.24360157]
[1752775841574,29.94,173.95,173.93,5.94943942]
[1752775841779,46.72468397,173.95,173.94,0.66]
[1752775842885,46.72468397,173.95,173.93,5.94943942]
[1752775843389,46.72468397,173.95,173.93,6.60943942]
[1752775843764,46.72468397,173.95,173.94,0.66]
[1752775845069,46.72468397,173.95,173.94,6.40910888]
[1752775847591,46.72468397,173.95,173.94,5.74910888]
[1752775848171,46.72468397,173.95,173.94,6.44910888]
[1752775849073,32.29416215,173.98,173.94,6.44910888]
[1752775849276,29.94,173.97,173.94,12.04327103]
[1752775849588,30.62,173.97,173.94,5.74910888]
[1752775849788,23.07884612,173.96,173.94,5.74910888]
[1752775849988,46.72468397,173.95,173.94,5.74910888]
[1752775850586,16.78468397,173.94,173.93,0.2]
[1752775850787,23.75884612,173.94,173.93,0.2]
[1752775850977,57.9790023,173.94,173.93,0.2]
[1752775851178,63.72811118,173.94,173.93,0.2]
[1752775855888,57.9790023,173.94,173.93,0.2]
[1752775856275,83.2990023,173.94,173.93,0.2]
[1752775856477,83.29522819,173.94,173.93,0.2]
[1752775856685,77.68106604,173.94,173.93,0.2]
[1752775856888,83.97522819,173.94,173.93,0.2]
[1752775857193,6.29416215,173.95,173.93,0.9]
[1752775857388,46.72468397,173.94,173.93,0.9]
[1752775858389,53.01884612,173.94,173.93,0.9]
[1752775858597,53.01884612,173.94,173.93,0.2]
[1752775858795,57.29509861,173.94,173.93,0.2]
[1752775859794,51.00093646,173.94,173.93,0.2]
[1752775859991,53.01884612,173.94,173.93,0.2]
[1752775860697,57.97534898,173.94,173.93,0.2]
[1752775861077,63.72445786,173.94,173.93,0.2]
[1752775863199,57.43029571,173.94,173.93,0.2]
[1752775863674,63.72445786,173.94,173.93,0.2]
[1752775864302,63.72474522,173.94,173.93,0.2]
[1752775864798,165.08468397,173.93,173.92,0.2]
[1752775864999,148.3,173.92,173.91,0.2]
[1752775865200,16.78468397,173.91,173.9,0.03]
[1752775865374,34.32953948,173.91,173.86,0.03]
[1752775865577,23.07884612,173.89,173.86,0.03]
[1752775865775,27.35537733,173.89,173.86,0.03]
[1752775866030,50.86448397,173.88,173.76,0.2]
[1752775866185,16.78468397,173.77,173.76,0.2]
[1752775866385,29.92,173.77,173.76,0.9]
[1752775866910,29.92,173.77,173.76,12.94921543]
[1752775867285,29.92,173.77,173.76,27.33687657]
[1752775867486,29.92,173.77,173.76,21.04271442]
[1752775867687,29.92,173.77,173.76,27.33687657]
[1752775868218,29.92,173.78,173.76,27.33687657]
[1752775868388,29.92,173.78,173.77,0.7]
[1752775868712,29.92,173.78,173.77,6.99416215]
[1752775869019,29.92,173.8,173.77,6.99416215]
[1752775869189,29.92,173.81,173.8,5.75373993]
[1752775869508,29.92,173.81,173.8,6.45373993]
[1752775869728,29.92,173.81,173.8,12.74790208]
[1752775869893,29.92,173.81,173.8,6.45373993]
[1752775870095,46.70468397,173.81,173.8,6.45373993]
[1752775870914,46.70468397,173.81,173.8,0.7]
[1752775871907,46.70468397,173.81,173.8,6.45373993]
[1752775872103,46.70468397,173.81,173.8,0.7]
[1752775873017,46.70468397,173.81,173.76,0.2]
[1752775873192,23.07884612,173.8,173.77,6.45473326]
[1752775873394,29.94,173.79,173.78,0.7]
[1752775873609,29.94,173.79,173.77,12.04889541]
[1752775873805,29.94,173.79,173.78,6.29416215]
[1752775874112,29.94,173.79,173.78,6.99416215]
[1752775875295,29.94,173.79,173.78,12.74856426]
[1752775878007,29.92,173.81,173.78,27.13456955]
[1752775878221,29.92,173.81,173.8,6.29416215]
[1752775878401,29.92,173.81,173.8,6.96416215]
[1752775880330,29.92,173.81,173.8,12.71790208]
[1752775882622,29.92,173.82,173.8,6.42373993]
[1752775882825,16.78468397,173.83,173.8,5.75373993]
[1752775883215,16.78468397,173.83,173.8,6.42373993]
[1752775883512,29.92,173.82,173.8,6.42373993]
[1752775884220,29.92,173.82,173.81,6.42340889]
[1752775884420,5.75119612,173.88,173.81,6.42340889]
[1752775884421,0.67,173.88,173.81,27.10109327]
[1752775884618,46.70468397,173.87,173.85,6.29416215]
[1752775884918,29.92,173.86,173.85,0.67]
[1752775885655,29.92,173.86,173.85,6.42208513]
[1752775886145,29.98,173.86,173.85,5.75208513]
[1752775886630,29.98,173.86,173.84,5.75230879]
[1752775887630,30.65,173.86,173.83,5.75265102]
[1752775887934,17.45468397,173.85,173.83,5.75265102]
[1752775888106,29.92,173.84,173.82,5.75297562]
[1752775890508,29.92,173.84,173.83,6.96416215]
[1752775891130,29.92,173.84,173.83,0.67]
[1752775891328,29.92,173.84,173.82,5.75297562]
[1752775891507,29.92,173.84,173.82,12.71713777]
[1752775891718,29.92,173.84,173.83,6.29416215]
[1752775893007,29.92,173.84,173.83,12.04690908]
[1752775893212,29.92,173.84,173.83,12.71690908]
[1752775893520,29.92,173.84,173.83,12.04690908]
[1752775894917,29.92,173.84,173.83,12.71690908]
[1752775895548,29.92,173.84,173.83,12.04690908]
[1752775895835,29.92,173.84,173.83,5.75274693]
[1752775897556,29.92,173.84,173.82,6.29416215]
[1752775897557,29.92,173.84,173.82,12.04711632]
[1752775898627,29.92,173.84,173.8,12.04790208]
[1752775898833,17.45468397,173.83,173.8,12.04790208]
[1752775899032,29.9,173.82,173.8,12.04790208]
[1752775899522,29.9,173.82,173.8,12.71790208]
[1752775899726,29.9,173.82,173.81,6.29416215]
[1752775899932,29.9,173.82,173.81,6.96416215]
[1752775900123,29.9,173.83,173.81,6.96416215]
[1752775900333,29.9,173.83,173.82,6.96416215]
[1752775901046,0.06,173.86,173.82,6.96416215]
[1752775901253,46.68468397,173.85,173.84,5.75241601]
[1752775903941,47.35468397,173.85,173.83,6.29416215]
[1752775904432,47.35468397,173.85,173.82,12.04690996]
[1752775904833,17.45468397,173.84,173.81,5.75332894]
[1752775905050,30.57,173.83,173.8,5.75364405]
[1752775905237,0.67,173.82,173.8,5.75364405]
[1752775905452,29.9,173.81,173.8,5.75364405]
[1752775905654,29.9,173.81,173.8,12.0478062]
[1752775906953,29.9,173.81,173.8,5.75364405]
[1752775907155,29.9,173.81,173.8,12.0478062]
[1752775908938,29.9,173.81,173.79,5.754071]
[1752775909162,29.9,173.81,173.8,6.29416215]
[1752775909363,30.6,173.81,173.79,12.04823315]
[1752775910236,29.9,173.81,173.79,12.04823315]
[1752775910848,29.9,173.81,173.79,5.754071]
[1752775911136,29.9,173.81,173.78,5.75440211]
[1752775911450,30.6,173.81,173.79,6.29416215]
[1752775912047,30.6,173.81,173.79,12.04813461]
[1752775912254,30.6,173.81,173.79,5.75397246]
[1752775912443,30.6,173.81,173.79,12.04813461]
[1752775912847,29.9,173.81,173.79,6.44397246]
[1752775913147,29.9,173.81,173.8,6.29416215]
[1752775913862,29.9,173.81,173.79,12.04813461]
[1752775915152,30.6,173.81,173.79,12.04813461]
[1752775915361,30.6,173.81,173.79,5.75397246]
[1752775915688,30.6,173.81,173.79,12.04813461]
[1752775916664,29.9,173.81,173.78,5.75429113]
[1752775916847,0.7,173.8,173.77,6.29416215]
[1752775917169,30.58,173.79,173.77,12.04875405]
[1752775917968,16.78468397,173.82,173.78,6.98416215]
[1752775918175,23.07884612,173.79,173.76,0.2]
[1752775918483,6.29416215,173.77,173.76,0.2]
[1752775918964,6.99416215,173.77,173.76,0.2]
[1752775919154,12.74889541,173.77,173.76,0.2]
[1752775919546,0.7,173.77,173.76,0.2]
[1752775919773,12.74889541,173.77,173.76,0.2]
[1752775920154,29.53357938,173.77,173.76,0.2]
[1752775920572,42.78468397,173.76,173.72,0.03]
[1752775920749,49.07884612,173.73,173.72,0.03]
[1752775920948,78.95884612,173.73,173.72,0.03]
[1752775921166,85.41490437,173.73,173.72,0.03]
[1752775921369,79.12074222,173.73,173.72,0.03]
[1752775921571,85.41490437,173.73,173.72,0.03]
[1752775921787,46.66468397,173.73,173.72,0.03]
[1752775922273,53.65884612,173.73,173.72,0.03]
[1752775923268,46.66468397,173.73,173.72,0.03]
[1752775924048,47.36468397,173.73,173.72,0.03]
[1752775925752,53.65884612,173.73,173.72,0.03]
[1752775925974,47.36468397,173.73,173.72,0.03]
[1752775927573,6.29416215,173.76,173.72,0.72]
[1752775927772,16.78468397,173.74,173.73,6.98416215]
[1752775927993,29.88,173.75,173.73,6.98416215]
[1752775928206,29.88,173.75,173.74,6.98416215]
[1752775929063,29.88,173.75,173.74,0.69]
[1752775929268,29.94,173.75,173.72,7.01416215]
[1752775929573,29.94,173.75,173.74,5.75572694]
[1752775929975,29.94,173.75,173.74,12.04988909]
[1752775930286,29.94,173.75,173.74,12.73988909]
[1752775930481,29.94,173.75,173.74,12.04988909]
[1752775930690,29.94,173.75,173.74,5.75572694]
[1752775931897,29.94,173.75,173.73,5.75597895]
[1752775932099,36.93416215,173.75,173.73,5.75597895]
[1752775932307,23.77884612,173.74,173.72,0.03]
[1752775932463,52.95884612,173.73,173.72,0.03]
[1752775932677,53.65884612,173.73,173.72,0.03]
[1752775933601,79.65884612,173.73,173.72,0.03]
[1752775933900,85.41490437,173.73,173.72,0.03]
[1752775934277,92.00230437,173.73,173.72,0.03]
[1752775935694,79.65884612,173.73,173.72,0.03]
[1752775937809,49.77884612,173.73,173.72,0.03]
[1752775937986,79.65884612,173.73,173.72,0.03]
[1752775938180,49.77884612,173.73,173.72,0.03]
[1752775938406,79.65884612,173.73,173.72,0.03]
[1752775938810,73.36468397,173.73,173.72,0.03]
[1752775939017,79.65884612,173.73,173.72,0.03]
[1752775939503,78.95884612,173.73,173.72,0.03]
[1752775939814,79.65884612,173.73,173.72,0.03]
[1752775942431,85.41490437,173.73,173.72,0.03]
[1752775947922,59.41490437,173.73,173.72,0.03]
[1752775950110,17.48468397,173.73,173.72,0.03]
[1752775950311,0.06,173.75,173.72,6.99416215]
[1752775950516,0.06,173.75,173.74,6.29416215]
[1752775950713,29.92,173.75,173.74,6.29416215]
[1752775951015,29.92,173.75,173.74,6.96416215]
[1752775951220,29.92,173.75,173.74,12.71988909]
[1752775952202,29.92,173.75,173.74,6.42572694]
[1752775952438,29.92,173.75,173.74,12.71988909]
[1752775955405,0.06,173.75,173.74,12.71988909]
[1752775956327,0.06,173.75,173.74,6.42572694]
[1752775956634,0.06,173.75,173.74,12.71988909]
[1752775957926,16.84468397,173.82,173.75,1.6445]
[1752775958128,46.64468397,173.81,173.8,6.29416215]
[1752775958522,46.64468397,173.81,173.8,6.96416215]
[1752775959234,46.64468397,173.81,173.8,12.71790208]
[1752775959612,46.64468397,173.81,173.8,6.42373993]
[1752775959811,46.64468397,173.81,173.8,12.71790208]
[1752775960121,46.64468397,173.81,173.8,6.29416215]
[1752775961111,46.64468397,173.81,173.79,5.7540024]
[1752775961311,46.64468397,173.81,173.8,6.29416215]
[1752775961748,16.78468397,173.8,173.77,12.04856589]
[1752775961908,29.84,173.79,173.77,12.04856589]
[1752775962234,29.84,173.79,173.76,6.42502519]
[1752775962416,16.78468397,173.78,173.75,5.75531434]
[1752775962738,31.75341633,173.81,173.76,0.67]
[1752775962739,29.84,173.77,173.76,0.67]
[1752775962932,29.84,173.77,173.76,6.29416215]
[1752775963732,29.84,173.77,173.76,12.0492266]
[1752775964234,29.84,173.77,173.76,12.7192266]
[1752775964630,16.78468397,173.8,173.76,12.7192266]
[1752775964839,0.76,173.82,173.79,6.29416215]
[1752775964840,0.06,173.82,173.79,6.29416215]
[1752775965011,29.84,173.81,173.8,0.67]
[1752775965211,29.84,173.81,173.8,6.96416215]
[1752775965617,29.84,173.81,173.8,6.29416215]
[1752775966349,30.54,173.81,173.78,12.04845919]
[1752775966534,17.48468397,173.8,173.78,6.29416215]
[1752775966715,29.84,173.79,173.78,6.29416215]
[1752775968128,29.84,173.79,173.78,12.04854144]
[1752775968822,29.84,173.79,173.78,6.29416215]
[1752775969230,29.84,173.79,173.78,12.04856426]
[1752775969840,29.84,173.79,173.78,12.73856426]
[1752775970647,29.84,173.79,173.78,6.44440211]
[1752775970943,29.84,173.79,173.78,12.04856426]
[1752775971523,29.84,173.79,173.78,6.29416215]
[1752775972733,29.84,173.79,173.78,12.73856426]
[1752775975132,29.84,173.79,173.78,12.04856426]
[1752775977841,29.84,173.79,173.77,6.44470314]
[1752775978023,30.54,173.79,173.77,5.75470314]
[1752775978224,30.54,173.79,173.78,6.29416215]
[1752775978427,29.84,173.79,173.78,6.29416215]
[1752775979125,30.54,173.79,173.76,5.75500782]
[1752775979334,30.54,173.79,173.76,12.04916997]
[1752775980559,30.54,173.79,173.77,6.29416215]
[1752775980927,30.54,173.79,173.73,14.38952372]
[1752775980928,17.48468397,173.78,173.75,6.29416215]
[1752775981263,29.82,173.77,173.75,6.29416215]
[1752775981436,16.78468397,173.75,173.72,0.03]
[1752775981640,23.07884612,173.73,173.72,0.03]
[1752775982032,23.77884612,173.73,173.72,0.03]
[1752775982455,17.48468397,173.73,173.72,0.03]
[1752775982632,16.78468397,173.73,173.72,0.03]
[1752775983067,29.82,173.73,173.72,0.72]
[1752775983291,29.82,173.73,173.72,0.03]
[1752775983955,47.30468397,173.73,173.72,0.03]
[1752775985558,46.60468397,173.73,173.72,0.03]
[1752775986150,29.82,173.73,173.72,7.01416215]
[1752775986453,29.82,173.73,173.72,0.03]
[1752775987449,29.82,173.73,173.72,12.77055174]
[1752775987838,29.82,173.74,173.72,12.77055174]
[1752775988034,29.82,173.74,173.73,6.98416215]
[1752775988864,29.82,173.74,173.72,5.78638959]
[1752775989068,30.52,173.74,173.72,12.08055174]
[1752775989367,29.82,173.74,173.72,12.77055174]
[1752775990240,29.82,173.74,173.73,6.29416215]
[1752775990872,29.82,173.74,173.72,6.47638959]
[1752775990873,29.82,173.74,173.72,12.08055174]
[1752775991248,29.82,173.74,173.72,5.78638959]
[1752775991463,29.82,173.74,173.72,12.08055174]
[1752775992039,0.7,173.73,173.72,0.03]
[1752775992452,29.82,173.74,173.72,0.03]
[1752775992871,29.82,173.74,173.72,5.78636877]
[1752775993169,29.82,173.74,173.72,12.08053092]
[1752775993548,29.82,173.74,173.72,12.77053092]
[1752775993742,29.82,173.74,173.73,6.98416215]
[1752775993971,29.82,173.74,173.73,12.7402204]
[1752775994651,29.82,173.74,173.73,6.44605825]
[1752775994864,0.06,173.75,173.73,12.7402204]
[1752775995070,0.06,173.75,173.74,6.98416215]
[1752775995775,29.86,173.75,173.74,6.29416215]
[1752775996152,30.56,173.75,173.73,12.0502204]
[1752775996373,30.56,173.75,173.72,12.08042552]
[1752776000463,30.56,173.75,173.72,6.32416215]
[1752776000947,30.56,173.75,173.72,7.00416215]
[1752776001563,30.56,173.75,173.73,6.29416215]
[1752776002777,30.56,173.75,173.73,12.05015795]
[1752776003475,30.56,173.75,173.72,12.08043603]
[1752776003860,0.72,173.74,173.72,0.03]
[1752776004054,29.8,173.73,173.72,0.03]
[1752776004362,46.58468397,173.73,173.72,0.03]
[1752776004571,57.89232155,173.73,173.72,0.03]
[1752776005863,29.8,173.73,173.72,0.03]
[1752776006764,30.52,173.73,173.72,0.03]
[1752776007069,47.30468397,173.73,173.72,0.03]
[1752776010666,17.50468397,173.73,173.72,0.03]
[1752776010987,46.58468397,173.73,173.72,0.03]
[1752776011480,16.78468397,173.73,173.72,0.03]
[1752776011671,46.58468397,173.73,173.72,0.03]
[1752776012485,46.58468397,173.73,173.72,6.32416215]
[1752776012784,29.8,173.73,173.72,12.76055174]
[1752776014073,0.06,173.75,173.72,12.76055174]
[1752776014270,29.78,173.74,173.72,5.78638959]
[1752776014467,29.78,173.74,173.73,6.97416215]
[1752776014691,0.06,173.75,173.74,5.75572694]
[1752776014885,0.06,173.75,173.74,12.04988909]
[1752776014886,29.84,173.75,173.74,12.04988909]
[1752776015099,0.06,173.75,173.74,12.72988909]
[1752776017283,0.06,173.75,173.74,6.43572694]
[1752776017596,0.06,173.75,173.74,12.72988909]
[1752776021090,0.06,173.75,173.74,5.75572694]
[1752776021279,0.06,173.75,173.74,12.72988909]
[1752776029205,29.76,173.79,173.78,6.29416215]
[1752776029699,30.43,173.79,173.74,20.81504431]
[1752776029913,0.67,173.78,173.77,6.29416215]
[1752776030514,29.76,173.79,173.77,6.29416215]
[1752776030811,30.43,173.79,173.78,6.29416215]
[1752776031013,29.76,173.79,173.78,12.04856426]
[1752776034391,0.67,173.81,173.78,12.04856426]
[1752776034605,4.96599124,173.81,173.8,6.29416215]
[1752776034808,34.72599124,173.81,173.8,6.29416215]
[1752776034990,4.96599124,173.81,173.78,5.75440211]
[1752776035305,30.43,173.8,173.79,6.29416215]
[1752776035910,30.43,173.8,173.79,12.04823315]
[1752776036209,29.76,173.8,173.79,12.04823315]
[1752776036802,29.76,173.8,173.79,5.754071]
[1752776037306,29.76,173.8,173.79,12.04823315]
[1752776037484,0.67,173.81,173.79,12.04823315]
[1752776037684,30.43,173.8,173.79,12.04823315]
[1752776038789,29.76,173.8,173.79,12.04823315]
[1752776039911,29.82,173.8,173.79,12.04823315]
[1752776040317,0.06,173.8,173.79,12.04823315]
[1752776040612,29.82,173.8,173.79,6.29416215]
[1752776040810,30.49,173.8,173.79,6.29416215]
[1752776041009,30.49,173.8,173.77,6.29416215]
[1752776041189,0.67,173.79,173.77,6.29416215]
[1752776041599,0.67,173.79,173.76,5.75475258]
[1752776041600,0.67,173.79,173.78,6.29416215]
[1752776042225,0.67,173.79,173.78,12.04856426]
[1752776042531,29.82,173.8,173.78,12.71856426]
[1752776042833,29.82,173.8,173.79,6.29416215]
[1752776043388,29.82,173.8,173.78,5.75440211]
[1752776043502,29.82,173.8,173.79,6.29416215]
[1752776043900,30.49,173.8,173.77,5.75445138]
[1752776044135,0.67,173.79,173.75,20.1435345]
[1752776044422,46.52468397,173.78,173.74,12.07982579]
[1752776044629,0.67,173.77,173.74,12.07982579]
[1752776044835,29.74,173.76,173.74,5.78566364]
[1752776045214,0.67,173.75,173.74,5.78566364]
[1752776045536,0.67,173.75,173.74,12.07982579]
[1752776045704,29.74,173.76,173.74,12.07982579]
[1752776045904,30.41,173.76,173.74,12.07982579]
[1752776047895,0.67,173.75,173.74,12.07982579]
[1752776048920,0.67,173.75,173.74,0.03]
[1752776049099,0.67,173.75,173.74,5.78572694]
[1752776050623,29.74,173.76,173.74,5.78572694]
[1752776050816,30.41,173.76,173.74,12.07988909]
[1752776051028,29.74,173.76,173.74,12.07988909]
[1752776051228,17.45468397,173.78,173.75,6.29416215]
[1752776051429,29.74,173.77,173.75,0.67]
[1752776051610,29.74,173.77,173.75,6.96416215]
[1752776051931,29.74,173.77,173.75,6.29416215]
[1752776052136,30.41,173.77,173.75,6.29416215]
[1752776052812,30.41,173.77,173.74,12.07988909]
[1752776053228,30.41,173.77,173.74,12.74988909]
[1752776053416,30.41,173.77,173.74,12.07988909]
[1752776054136,29.74,173.77,173.76,6.29416215]
[1752776054434,29.74,173.77,173.76,6.96416215]
[1752776055040,29.74,173.79,173.76,6.96416215]
[1752776055339,29.74,173.79,173.78,6.29416215]
[1752776055638,29.74,173.79,173.78,6.96416215]
[1752776056323,0.06,173.8,173.79,5.754071]
[1752776056527,0.06,173.8,173.79,12.71823315]
[1752776056840,29.8,173.8,173.79,12.71823315]
[1752776057423,29.8,173.8,173.79,12.04823315]
[1752776057620,29.8,173.8,173.79,5.754071]
[1752776057834,30.5,173.8,173.79,12.04823315]
[1752776058127,30.5,173.8,173.79,5.754071]
[1752776058322,30.5,173.8,173.78,5.75440211]
[1752776058323,34.80305695,173.8,173.78,5.75440211]
[1752776058551,0.7,173.79,173.78,5.75440211]
[1752776058739,5.00329371,173.79,173.78,5.75440211]
[1752776059187,5.00329371,173.79,173.76,12.04911729]
[1752776059343,30.44,173.78,173.76,5.75495514]
[1752776059541,30.44,173.78,173.76,12.04911729]
[1752776059845,29.74,173.78,173.77,6.29416215]
[1752776060043,30.44,173.78,173.76,5.75495514]
[1752776060243,0.7,173.77,173.76,5.75495514]
[1752776060437,5.00430384,173.77,173.75,5.75527613]
[1752776060645,30.44,173.76,173.75,5.75527613]
[1752776061746,34.74448799,173.76,173.74,5.78563068]
[1752776061947,0.7,173.75,173.74,0.03]
[1752776062166,5.00477514,173.75,173.74,0.03]
[1752776062892,5.00424943,173.75,173.74,0.03]
[1752776063969,5.00376692,173.75,173.74,0.03]
[1752776065793,5.00306061,173.75,173.74,0.03]
[1752776067486,28.08190673,173.75,173.74,0.03]
[1752776069480,11.29722276,173.75,173.74,0.03]
[1752776069685,28.08190673,173.75,173.74,0.03]
[1752776071577,28.07762225,173.75,173.74,0.03]
[1752776071779,57.81777936,173.75,173.74,0.03]
[1752776073302,51.52361721,173.75,173.74,0.03]
[1752776074718,57.81777936,173.75,173.74,0.03]
[1752776075404,21.78361721,173.75,173.74,0.03]
[1752776075594,34.01893324,173.75,173.74,6.32416215]
[1752776075798,29.72,173.75,173.74,6.32416215]
[1752776076688,29.72,173.75,173.74,12.07988909]
[1752776077906,30.42,173.75,173.74,6.32416215]
[1752776078110,34.71577698,173.75,173.74,6.32416215]
[1752776078610,51.50046095,173.75,173.74,6.32416215]
[1752776079513,34.01577698,173.75,173.74,6.32416215]
[1752776079801,34.01577698,173.75,173.74,0.03]
[1752776080104,30.42,173.75,173.74,6.32416215]
[1752776080882,29.72,173.75,173.74,12.07988909]
[1752776081084,29.72,173.75,173.74,12.76988909]
[1752776081701,29.72,173.75,173.74,12.07988909]
[1752776082412,29.72,173.75,173.74,12.76988909]
[1752776083594,29.78,173.75,173.74,12.76988909]
[1752776084492,0.06,173.75,173.74,12.76988909]
[1752776084691,29.78,173.75,173.74,12.76988909]
[1752776085703,29.78,173.75,173.74,5.78572694]
[1752776086006,29.78,173.75,173.74,12.07988909]
[1752776086508,29.78,173.75,173.74,12.76988909]
[1752776087211,30.46,173.75,173.74,5.78572694]
[1752776087385,29.78,173.75,173.74,12.07988909]
[1752776087589,29.78,173.75,173.74,12.75988909]
[1752776089491,29.78,173.75,173.74,12.07988909]
[1752776092703,30.46,173.75,173.74,12.07988909]
[1752776093010,34.75925025,173.75,173.74,12.07988909]
[1752776093413,30.46,173.75,173.74,6.32416215]
[1752776093611,34.75927533,173.75,173.74,6.32416215]
[1752776095209,34.75927533,173.75,173.74,0.03]
[1752776097199,34.75927533,173.75,173.74,6.32416215]
[1752776097400,34.07927533,173.75,173.74,6.32416215]
[1752776097600,0.06,173.75,173.74,6.32416215]
[1752776097801,29.76,173.75,173.74,6.32416215]
[1752776098433,30.44,173.75,173.74,6.32416215]
[1752776098621,30.44,173.75,173.74,12.07988909]
[1752776098929,29.76,173.75,173.74,12.07988909]
[1752776100632,34.05926045,173.75,173.74,12.07988909]
[1752776101613,34.73926045,173.75,173.74,12.07988909]
[1752776102010,0.06,173.75,173.74,12.75988909]
[1752776102420,29.76,173.75,173.74,12.75988909]
[1752776106228,0.06,173.75,173.74,12.75988909]
[1752776106832,1e-08,173.75,173.74,12.75988909]